Cogmind - Beta 11 @@@ ROGUE MODE // 2022.03.30 @ 22:49:26 Player: Catfish Result: Destroyed by Y-45 Defender with Beam Rifle Performance ------------- Evolutions (1) 500 Regions Visited (3) 600 Robots Destroyed (41) 205 Value Destroyed (987) 987 Prototype IDs (1) 20 Alien Tech Used (0) 0 Bonus (20) 20 TOTAL SCORE: 2332 Bonus ------- High Alert Combat Kills 20 Cogmind --------- Core Integrity 0/400 Matter 300/300 Energy 280/280 System Corruption 0% Temperature Cool (9) Movement Walking (120) Location -9/Storage Parts ------- > --- POWER (1) -------- Heavy Ion Engine > --- PROPULSION (3) --- Aluminum Leg Aluminum Leg Aluminum Leg > --- UTILITY (3) ------ Medium Storage Unit Weight Redist. System Light Armor Plating > --- WEAPON (2) ------- Heavy Assault Rifle Heavy Assault Rifle > --- INVENTORY (10) --- Reinforced Ion Engine Aluminum Leg Structural Scanner Visual Processing Unit Light Armor Plating Authchip [R/Combat] Heavy Assault Rifle Heavy Assault Rifle Heavy Assault Rifle EMP Blaster Peak State ------------ > --- POWER ------------ Light Deuterium Engine > --- PROPULSION ------- Aluminum Leg Aluminum Leg Aluminum Leg > --- UTILITY ---------- Small Storage Unit Sensor Array Signal Interpreter > --- WEAPON ----------- Pulse Rifle Pulse Rifle > --- INVENTORY -------- Ion Engine Light Deuterium Engine Light Deuterium Engine Light Deuterium Engine Aluminum Leg Compact Wheel Small Laser Small Laser [Rating: 16] Favorites ----------- Power Light Deuterium Engine Engine Light Deuterium Engine Propulsion Aluminum Leg Leg Aluminum Leg Wheel Wheel Utility Sensor Array Device Sensor Array Storage Small Storage Unit Processor Signal Interpreter Protection Light Armor Plating Weapon Heavy Assault Rifle Energy Gun Pulse Rifle Ballistic Gun Heavy Assault Rifle Build | -11 -10 -9 -9 ------- Run | Scr Mat Mat Sto Slots Evolved 2 | . . 2 . Power . | . . . . Propulsion 1 | . . 1 . Utility 1 | . . 1 . Weapon . | . . . . Parts Attached 40 | 6 2 22 10 Power 7 | 1 . 6 . Engine 7 | 1 . 6 . Core . | . . . . Reactor . | . . . . Propulsion 15 | 2 1 8 4 Treads . | . . . . Leg 14 | 2 1 7 4 Wheel 1 | . . 1 . Hover . | . . . . Flight . | . . . . Utility 6 | 1 1 2 2 Device 2 | . 1 . 1 Storage 2 | 1 . 1 . Processor 1 | . . 1 . Hackware . | . . . . Protection 1 | . . . 1 Artifact . | . . . . Weapon 12 | 2 . 6 4 Energy Gun 6 | 2 . 4 . Energy Cannon . | . . . . Ballistic Gun 6 | . . 2 4 Ballistic Cannon . | . . . . Launcher . | . . . . Special Weapon . | . . . . Impact Weapon . | . . . . Slashing Weapon . | . . . . Piercing Weapon . | . . . . Special Melee Weapon . | . . . . Unidentified Prototypes 1 | . . 1 . Parts Lost 10 | . . 10 . Power 3 | . . 3 . Propulsion 5 | . . 5 . Utility . | . . . . Weapon 2 | . . 2 . Highest Loss Streak 5 | . . 5 . To Critical Strikes . | . . . . Average Slot Usage (%) 92 | . 97 89 93 Engine 10 | . 14 9 11 Leg 24 | . 28 25 22 Wheel 2 | . . . 5 Device 11 | . 12 11 11 Storage 11 | . 14 11 11 Processor 7 | . . 11 3 Protection 2 | . . . 7 Energy Gun 12 | . 28 14 . Ballistic Gun 9 | . . 6 20 Naked Turns . | . . . . Heaviest Build 27 | 12 13 22 27 Greatest Support 36 | 20 20 30 36 Greatest Overweight (x) 4 | 1 . 4 2 Average Overweight (x) . | . . . . Largest Inventory Capacity 10 | 8 8 10 10 Average Capacity 8 | 7 8 8 10 Most Carried 10 | 3 7 8 10 Average Carried 6 | 1 4 7 8 Final Capacity 10 | 8 8 10 10 Final Carried 10 | 3 7 6 10 Class Distribution -------------------- 50% | Scavenger-Mutant 49% | Mutant Dominant Class ---------------- Mutant | -10/Materials Mutant | -9/Materials Scavenger-Mutant | -9/Storage Resources | -11 -10 -9 -9 ----------- Run | Scr Mat Mat Sto Matter Collected 968 | 193 87 333 355 Remotely . | . . . . Salvage Created 1233 | . 75 629 529 Parts 78 | . 4 51 23 Haulers Intercepted 2 | . . 2 . Recyclers Shooed 1 | . . . 1 Parts Field Recycled . | . . . . Retrieved Matter . | . . . . Parts Self-Destructed . | . . . . Prevented . | . . . . Kills | -11 -10 -9 -9 ------- Run | Scr Mat Mat Sto Combat Hostiles Destroyed 34 | . 1 24 9 Guns 33 | . 1 23 9 Classes Destroyed 7 | . 2 3 2 Hauler 2 | . . 2 . Recycler 1 | . . . 1 Watcher 4 | . 1 1 2 Swarmer 14 | . . 14 . Grunt 14 | . 1 7 6 Brawler 1 | . . . 1 Sentry 5 | . . 3 2 Best Kill Streak 5 | . 1 5 5 Combat Bots Only 4 | . 1 4 3 Max Kills in Single Turn 2 | . 1 2 1 Gunslinging . | . . . . Exploded . | . . . . Melee . | . . . . Uniques/NPCs Destroyed . | . . . . Combat | -11 -10 -9 -9 -------- Run | Scr Mat Mat Sto Damage Taken 2118 | . 78 1504 536 Core 413 | . . 314 99 Absorbed by Shields . | . . . . Core Remaining (%) 100 | 100 100 . . Volleys Fired 130 | . 14 76 40 Largest 2 | . 2 2 2 Hottest 126 | . 80 126 46 Shots Fired 245 | . 28 137 80 Gun 245 | . 28 137 80 Cannon . | . . . . Launcher . | . . . . Special . | . . . . Kinetic 124 | . . 44 80 Thermal 121 | . 28 93 . Explosive . | . . . . Electromagnetic . | . . . . Robot Hit Streak 17 | . 6 17 17 Robot Miss Streak 6 | . 2 6 5 Penetration Max . | . . . . Secondary Targets 3 | . . 3 . Max Gunslinging Chain 1 | . . 1 . Shots Hit Robots 159 | . 19 88 52 Core Hits 55 | . 6 30 19 Critical Kills . | . . . . Critical Parts Destroyed 1 | . . . 1 Critical Strikes 5 | . . 4 1 Burn 4 | . . 4 . Destroy 1 | . . . 1 Melee Attacks . | . . . . Impact . | . . . . Slashing . | . . . . Piercing . | . . . . Sneak Attacks . | . . . . Combat Hostiles . | . . . . Follow-up Attacks . | . . . . Damage Inflicted 2539 | . 203 1526 810 Guns 2534 | . 203 1526 805 Cannons . | . . . . Explosions . | . . . . Melee . | . . . . Ramming 5 | . . . 5 Kinetic 1262 | . . 457 805 Thermal 1272 | . 203 1069 . Explosive . | . . . . Electromagnetic . | . . . . Impact . | . . . . Slashing . | . . . . Piercing . | . . . . Highest Corruption . | . . . . Average Corruption . | . . . . Corruption Purged . | . . . . Corruption Blocked . | . . . . Overload Shots . | . . . . Overflow Damage . | . . . . Projectiles . | . . . . Explosions . | . . . . Melee . | . . . . Knockbacks . | . . . . Impact . | . . . . Kinetic . | . . . . Secondary . | . . . . Self-Inflicted Damage . | . . . . Shots . | . . . . Rammed . | . . . . Targets Rammed 1 | . . . 1 Kicked 1 | . . . 1 Crushed . | . . . . Highest Temperature 383 | . 207 383 16 Average Temperature 121 | . 91 149 4 Received Heat Transfer 576 | . 45 321 210 Effects 13 | . . 13 . Shutdowns 2 | . . 2 . Energy Bleed 1 | . . 1 . Interference 8 | . . 8 . Matter Decay 1 | . . 1 . Damage (minor) 1 | . . 1 . Siege Activations . | . . . . Robots Corrupted . | . . . . Combat Hostiles . | . . . . Parts Fried . | . . . . Impact Corruptions . | . . . . Robots Melted 1 | . . 1 . Combat Hostiles 1 | . . 1 . Parts Melted 5 | . . 5 . Heat Transferred 3102 | . 475 2627 . Parts Sabotaged . | . . . . Parts Stolen . | . . . . Parts Stripped . | . . . . Power Chain Reactions . | . . . . Missiles Intercepted . | . . . . Alert | -11 -10 -9 -9 ------- Run | Scr Mat Mat Sto Peak Influence 586 | . 82 586 456 Initial 139 | . . 34 139 Average 234 | . 30 286 297 Maximum Alert Level 2 | . . 2 2 Low Security (%) 37 | 100 100 21 19 Level 1 47 | . . 58 63 Level 2 14 | . . 19 17 Level 3 . | . . . . Level 4 . | . . . . Level 5 . | . . . . High Security . | . . . . Max Security . | . . . . Squads Dispatched 7 | . 1 3 3 Investigation 2 | . . 2 . Extermination . | . . . . Reinforcement 5 | . 1 1 3 Assault . | . . . . Garrison . | . . . . Intercept . | . . . . Searches Triggered . | . . . . Construction Impeded . | . . . . Haulers Reinforced . | . . . . Active Scanning Responses . | . . . . Cargo Convoy Interrupts . | . . . . Stealth | -11 -10 -9 -9 --------- Run | Scr Mat Mat Sto Distress Signals 3 | . . . 3 Communications Jammed . | . . . . Distress Signals . | . . . . Times Spotted 59 | . 5 33 21 Peak Tracking Total 6 | . 2 5 6 Tactical Retreats 4 | . . 4 . Traps | -11 -10 -9 -9 ------- Run | Scr Mat Mat Sto Traps Triggered 2 | . . 2 . Indirectly . | . . . . Trap Hack Attempts . | . . . . Triggered . | . . . . Disarmed . | . . . . Reprogrammed . | . . . . Reused . | . . . . Traps Extracted . | . . . . Installed . | . . . . Triggered . | . . . . Machines | -11 -10 -9 -9 ---------- Run | Scr Mat Mat Sto Machines Disabled 1 | . . 1 . Max in Single Turn 1 | . . 1 . Machines Sabotaged . | . . . . Garrisons Compromised . | . . . . Overloaded Fab Kills . | . . . . Hacking | -11 -10 -9 -9 --------- Run | Scr Mat Mat Sto Machines Accessed 4 | . 1 3 . Terminals 4 | . 1 3 . Fabricators . | . . . . Repair Stations . | . . . . Recycling Units . | . . . . Scanalyzers . | . . . . Garrison Access . | . . . . Total Hacks 11 | . 3 8 . Successful 5 | . . 5 . Failed 6 | . 3 3 . Catastrophic 2 | . 1 1 . Database Lockouts . | . . . . Manual 9 | . 3 4 2 Terminals 11 | . 3 8 . Fabricators . | . . . . Repair Stations . | . . . . Recycling Units . | . . . . Scanalyzers . | . . . . Garrison Access . | . . . . Terminal Hacks 3 | . . 3 . Record 1 | . . 1 . Branch Access Points 1 | . . 1 . Unreport Threat 1 | . . 1 . Fabricator Hacks . | . . . . Repair Station Hacks . | . . . . Recycling Unit Hacks . | . . . . Scanalyzer . | . . . . Garrison Access Hacks . | . . . . Unauthorized Hacks 2 | . . 2 . Terminals 2 | . . 2 . Botnet 2 | . . 2 . Fabricators . | . . . . Repair Stations . | . . . . Recycling Units . | . . . . Scanalyzers . | . . . . Garrison Access . | . . . . Data Cores Recovered . | . . . . Used . | . . . . Hacking Detections 3 | . 1 2 . Full Trace Events . | . . . . Feedback Events . | . . . . Feedback Blocked . | . . . . Robot Schematics Acquired . | . . . . Robots Built . | . . . . Authchips . | . . . . Time . | . . . . Total Robot Build Rating . | . . . . Part Schematics Acquired . | . . . . Parts Built . | . . . . Authchips . | . . . . Time . | . . . . Total Part Build Rating . | . . . . Parts Repaired . | . . . . Time . | . . . . Parts Recycled . | . . . . Recycled Matter . | . . . . Retrieved Matter . | . . . . Retrieved Components . | . . . . Parts Scanalyzed . | . . . . Part Schematics Acquired . | . . . . Parts Damaged . | . . . . Bothacking | -11 -10 -9 -9 ------------ Run | Scr Mat Mat Sto Used RIF Installer . | . . . . Robots Hacked . | . . . . Non-combat . | . . . . Combat . | . . . . Robot Hacks Applied . | . . . . Relay Couplers Released . | . . . . Fabnet Peak Effective % . | . . . . Robots Rewired . | . . . . Allies Hacked . | . . . . Hacks Repelled . | . . . . Allies | -11 -10 -9 -9 -------- Run | Scr Mat Mat Sto Total Allies . | . . . . Largest Group . | . . . . Highest-Rated Group . | . . . . Highest-Rated Ally . | . . . . Total Orders . | . . . . Ally Attacks . | . . . . Total Damage . | . . . . Kills . | . . . . Allies Corrupted . | . . . . Allies Melted . | . . . . Intel | -11 -10 -9 -9 ------- Run | Scr Mat Mat Sto Robot Analysis Total . | . . . . Derelict Logs Recovered . | . . . . Drone Launches . | . . . . Drone Recoveries . | . . . . Exploration | -11 -10 -9 -9 ------------- Run | Scr Mat Mat Sto Turns Passed 1453 | 84 218 752 399 Spaces Moved 702 | 43 133 322 204 Core 8 | 2 . 6 . Treads . | . . . . Legs 589 | 41 133 283 132 Wheels 105 | . . 33 72 Hover . | . . . . Flight . | . . . . Fastest Speed 50 | 50 120 110 95 Average Speed 128 | 168 120 137 112 Slowest Speed 250 | 190 120 250 120 Overloaded Moves . | . . . . Propulsion Burnouts . | . . . . Robots Hopped . | . . . . Cave-ins Triggered . | . . . . Exploration Rate (%) 27 | 4 39 28 38 Regions Visited 3 Branch Regions 1 Pre-discovered Areas . | . . . . Known Exits Taken 1 | . . 1 . Unknown Exits Taken 2 | 1 1 . . Scrap Searched . | . . . . Spaces Dug . | . . . . Terrain Destroyed . | . . . . Melee . | . . . . Projectile . | . . . . AOE . | . . . . Terrain Rammed . | . . . . Walls Destroyed . | . . . . Machines Disabled . | . . . . Actions | -11 -10 -9 -9 --------- Run | Scr Mat Mat Sto Total 1013 | 51 163 500 299 Wait 86 | . 10 53 23 Move 699 | 42 132 321 204 Hop . | . . . . Pick Up 31 | 3 4 11 13 Fast Attach 13 | 6 1 6 . Attach 11 | . . 8 3 Detach . | . . . . Swap 16 | . 1 8 7 Drop 26 | . 1 17 8 Fire 130 | . 14 76 40 Melee . | . . . . Ram . | . . . . Kick 1 | . . . 1 Crush . | . . . . Escape Stasis . | . . . . Rewire . | . . . . Trap . | . . . . Miscellaneous . | . . . . Route ------- -11/Scrapyard -10/Materials -9/Materials (discovered 4 exits: [*Mat] / Min / *Sto x2) -9/Storage History --------- Turn | Location | Event 34 | -11/Scrapyard | Discovered new exit (range 14) 85 | -11/Scrapyard | Entered Materials 272 | -10/Materials | Discovered new exit (range 10) 303 | -10/Materials | Entered another Materials area 303 | -9/Materials | Evolved 2 slots: Propulsion x1, Utility x1 348 | -9/Materials | Build established: Mutant 387 | -9/Materials | Identified exit to Mines 387 | -9/Materials | Identified exit to Storage 825 | -9/Materials | Lost 4 parts (2p2n) 832 | -9/Materials | Discovered new exit (range 15) 976 | -9/Materials | Core integrity fell below 50% 1030 | -9/Materials | Lost 5 parts (1p2n2w) 1055 | -9/Materials | Entered Storage 1111 | -9/Storage | Core integrity fell below 20% 1348 | -9/Storage | Build established: Scavenger-Mutant 1454 | -9/Storage | Destroyed by Y-45 Defender with Beam Rifle Last Messages --------------- 01375_ Y-45 Defender destroyed. 01378_ Acquired 12 matter. 01380_ K-01 Serf collects debris. 01386_ W-16 Scout destroyed. 01388_ ALERT: Hostiles spotted, dispatching reinforcements to Terminal S012. 01393_ Acquired 6 matter. 01395_ Dropped Wheel. 01396_ Acquired Visual Processing Unit. 01406_ Connecting with Door Terminal... 01425_ O-16 Technician: "IFF HANDSHAKE FAILED. SECURING TERMINAL." 01426_ O-16 Technician sends out distress signal. 01432_ W-16 Scout sends out distress signal. 01433_ ALERT: Hostiles spotted, dispatching reinforcements to Terminal S009. 01434_ U-05 Engineer sends out distress signal. 01437_ W-16 Scout destroyed. 01446_ Acquired 12 matter. 01446_ ALERT: Hostiles spotted, dispatching reinforcements to Terminal S013. Map ----- +----------------------------------------------------+ | +### ""???" #????????????????????????????????????? | | #?# "???"" #????????????????????????????????????? | | #?# "??"" #????????????????????????????????????? | | #?# """" #????????????????????????????????????? | | #?# #????????????????????????????????????? | | #?##########????????????????????????????????????? | | #???????????????????????????????????????????????? | | #???????????????????????????????????????????????? | | #???????????????????????????????????????????????? | | #########???????????????????????????????????????? | | ?????????????????????????????????? | | ######????????????????????????????????????????? | | #?????????????????????????????????????????????? | | #?????????????????????????????????????????????? | | #?????????????????????????????????????????????? | | #?????????????????????????????????????????????? | | #?????????????????????????????????????????????? | | +?????????????????????????????????????????????? | | * # ????????????????????????????????????????????? | | !% # "????????????????????????????#??????????????? | | =#?#??????????????????????????? #??????????????? | | #?????????#####????????????? ##?????????????? | | ###########"T"############# #?????????????? | | o Y #?????????????? | | =! Y #?????????????? | | ^Y =%! @ gog ????????? | | ##+#+#########+############### #T????????????? | | #??? ????????????????###?????????????? | | """"" #?# ??????????????????????????????? | | """"" #?# """" #?????????????????????????????? | | """"" #?# """" #?????????????????????????????? | | #?# """" #?????????????????????????????? | | """"" #?# """" #?????????????????????????????? | | """"" #?# ??#?????????????????????????????? | | ????? #?# ???????????????????????????????????? | | ?????? #? ???????????????????????????????????? | | ?????????###"???????????????????????????????????? | | ????????????#"???????????????????????????????????? | | ?????????????????????????????????????????????????? | | ?????????????????????????????????????????????????? | | ?????????????????????????????????????????????????? | | ?????????????????????????????????????????????????? | | ?????????????????????????????????????????????????? | | ?????????????????????????????????????????????????? | | ?????????????????????????????????????????????????? | | ?????????????????????????????????????????????????? | | ?????????????????????????????????????????????????? | | ?????????????????????????????????????????????????? | | ?????????????????????????????????????????????????? | | ?????????????????????????????????????????????????? | +----------------------------------------------------+ Best States ------------- Heat Dissipation 28 Energy Generation 14 Energy Capacity 280 Matter Stores 300 Matter Capacity 300 Sight Range 16 Robot Scan Range 14 Terrain Scan Density 10 Additional Mass Support 6 Armor Coverage 150 Evasion (%) 55 Authchip Count 1 Item Schematics ----------------- None Robot Schematics ------------------ None Fabricated ------------ Nothing Alien Tech Used ----------------- None Achievements -------------- None Challenges ------------ None Game ------ Seed SupersonicPulseBeam Manual? 0 Play Time 00:20:26 Cumulative 3.4 hours Start 2022.03.30 @ 22:33:01 End 2022.03.30 @ 22:49:26 Sessions 1 Manual Loads 0 Difficulty Rogue Special Mode None Game No. 13 Rogue 13 Adventurer 0 Explorer 0 Win Type - Total 0 Types 0/0/0/0/0/0/0/0/0 Lore% 4 Gallery% 10 Achievement% 12 Wizard Run 0 Options --------- ASCII 0 Keyboard 0 Movement Numpad Keybinds 0 Fullscreen 2 Font 18/X11Bold Map View 76x50 Tactical HUD 1 Map Filters NONE Filters NONE Steam 1 RUN: f1be0d95-7a70-4e37-a68a-fa540ba3edbb